[Event "Titled Tuesday Blitz January 10 Early 2023"]
[White "Bobkov, Vadim"]
[Black "Kazancev, Valerij M"]
[WhiteFideId "34110876"]
[BlackFideId "4179609"]
[WhiteElo "2209"]
[BlackElo "2413"]
[Result "0-1"]
[Round "04"]
[TimeControl "180+1"]
[Date "2023.01.10"]
[WhiteClock "0:00:01"]
[BlackClock "0:00:15"]

1. d4 {[%clk 0:02:59]}  e6 {[%clk 0:02:59]} 2. c4 {[%clk 0:02:59]}  g6 {[%clk 0:02:59]} 3. Nc3 {[%clk 0:02:58]}  Bg7 {[%clk 0:03:00]} 4. Nf3 {[%clk 0:02:58]}  Ne7 {[%clk 0:03:00]} 5. Bg5 {[%clk 0:02:58]}  h6 {[%clk 0:03:00]} 6. Bh4 {[%clk 0:02:57]}  a6 {[%clk 0:03:00]} 7. e3 {[%clk 0:02:57]}  d6 {[%clk 0:03:00]} 8. Be2 {[%clk 0:02:57]}  g5 {[%clk 0:03:00]} 9. Bg3 {[%clk 0:02:56]}  Nf5 {[%clk 0:03:00]} 10. Nd2 {[%clk 0:02:47]}  O-O {[%clk 0:02:49]} 11. Qc2 {[%clk 0:02:46]}  Nc6 {[%clk 0:02:37]} 12. a3 {[%clk 0:02:44]}  Bd7 {[%clk 0:02:35]} 13. O-O {[%clk 0:02:40]}  Nxg3 {[%clk 0:02:23]} 14. fxg3 {[%clk 0:02:27]}  f5 {[%clk 0:02:22]} 15. Bh5 {[%clk 0:02:11]}  Be8 {[%clk 0:02:10]} 16. Bf3 {[%clk 0:01:50]}  Rc8 {[%clk 0:01:19]} 17. Rad1 {[%clk 0:01:44]}  Qe7 {[%clk 0:01:13]} 18. b4 {[%clk 0:01:39]}  Bg6 {[%clk 0:01:08]} 19. Qb3 {[%clk 0:01:36]}  Nd8 {[%clk 0:01:06]} 20. c5 {[%clk 0:01:26]}  d5 {[%clk 0:01:05]} 21. b5 {[%clk 0:01:25]}  axb5 {[%clk 0:00:59]} 22. Nxb5 {[%clk 0:01:10]}  c6 {[%clk 0:00:59]} 23. Nd6 {[%clk 0:01:08]}  Rc7 {[%clk 0:01:00]} 24. a4 {[%clk 0:00:55]}  e5 {[%clk 0:00:54]} 25. Qb4 {[%clk 0:00:42]}  Ne6 {[%clk 0:00:46]} 26. Nb3 {[%clk 0:00:26]}  Rd7 {[%clk 0:00:36]} 27. Rfe1 {[%clk 0:00:25]}  h5 {[%clk 0:00:29]} 28. a5 {[%clk 0:00:24]}  e4 {[%clk 0:00:29]} 29. Be2 {[%clk 0:00:24]}  f4 {[%clk 0:00:29]} 30. gxf4 {[%clk 0:00:19]}  gxf4 {[%clk 0:00:30]} 31. exf4 {[%clk 0:00:18]}  Nxf4 {[%clk 0:00:29]} 32. Bf1 {[%clk 0:00:09]}  Qg5 {[%clk 0:00:26]} 33. Kh1 {[%clk 0:00:09]}  h4 {[%clk 0:00:22]} 34. a6 {[%clk 0:00:08]}  bxa6 {[%clk 0:00:21]} 35. Qb6 {[%clk 0:00:08]}  e3 {[%clk 0:00:18]} 36. Rxe3 {[%clk 0:00:05]}  Nxg2 {[%clk 0:00:17]} 37. Qxc6 {[%clk 0:00:01]}  Nxe3 {[%clk 0:00:16]} 38. Qxd7 {[%clk 0:00:01]}  Nxd1 {[%clk 0:00:15]} 0-1


[Site "https://www.chess.com"]

[Event "Titled Tuesday Blitz January 10 Early 2023"]
[White "Flynn, Jacob"]
[Black "Fromm, Marius"]
[WhiteFideId "2509393"]
[BlackFideId "12993190"]
[WhiteElo "2053"]
[BlackElo "2325"]
[Result "0-1"]
[Round "04"]
[TimeControl "180+1"]
[Date "2023.01.10"]
[WhiteClock "0:00:04"]
[BlackClock "0:00:23"]

1. d4 {[%clk 0:03:00]}  d5 {[%clk 0:02:57]} 2. c4 {[%clk 0:03:01]}  dxc4 {[%clk 0:02:57]} 3. e3 {[%clk 0:03:01]}  Nf6 {[%clk 0:02:57]} 4. Bxc4 {[%clk 0:03:01]}  e6 {[%clk 0:02:57]} 5. Nf3 {[%clk 0:03:01]}  c5 {[%clk 0:02:58]} 6. O-O {[%clk 0:03:01]}  a6 {[%clk 0:02:59]} 7. Nbd2 {[%clk 0:03:01]}  cxd4 {[%clk 0:02:56]} 8. Nxd4 {[%clk 0:03:00]}  Bc5 {[%clk 0:02:56]} 9. N4f3 {[%clk 0:02:23]}  O-O {[%clk 0:02:54]} 10. a3 {[%clk 0:02:22]}  b5 {[%clk 0:02:53]} 11. Be2 {[%clk 0:02:21]}  Bb7 {[%clk 0:02:53]} 12. b4 {[%clk 0:02:20]}  Be7 {[%clk 0:02:53]} 13. Bb2 {[%clk 0:02:21]}  Nbd7 {[%clk 0:02:49]} 14. Rc1 {[%clk 0:02:19]}  Rc8 {[%clk 0:02:48]} 15. Nd4 {[%clk 0:02:19]}  Qb6 {[%clk 0:02:42]} 16. Bf3 {[%clk 0:02:17]}  Rxc1 {[%clk 0:02:35]} 17. Qxc1 {[%clk 0:02:16]}  Rc8 {[%clk 0:02:29]} 18. Qb1 {[%clk 0:02:16]}  Bxf3 {[%clk 0:02:23]} 19. N2xf3 {[%clk 0:02:16]}  Qb7 {[%clk 0:02:08]} 20. Ne2 {[%clk 0:02:06]}  Nb6 {[%clk 0:02:03]} 21. Rc1 {[%clk 0:01:51]}  Nc4 {[%clk 0:02:03]} 22. Ne5 {[%clk 0:01:45]}  Nxb2 {[%clk 0:01:59]} 23. Rxc8+ {[%clk 0:01:41]}  Qxc8 {[%clk 0:01:58]} 24. Qxb2 {[%clk 0:01:42]}  Nd5 {[%clk 0:01:58]} 25. Nd3 {[%clk 0:01:37]}  Qc4 {[%clk 0:01:53]} 26. Ndc1 {[%clk 0:01:30]}  Bf6 {[%clk 0:01:52]} 27. Qd2 {[%clk 0:01:27]}  g6 {[%clk 0:01:47]} 28. g3 {[%clk 0:01:26]}  h5 {[%clk 0:01:45]} 29. Qd3 {[%clk 0:01:23]}  Bb2 {[%clk 0:01:39]} 30. Qxc4 {[%clk 0:01:02]}  bxc4 {[%clk 0:01:40]} 31. e4 {[%clk 0:01:03]}  Nb6 {[%clk 0:01:35]} 32. Na2 {[%clk 0:00:41]}  Bxa3 {[%clk 0:01:34]} 33. Nec3 {[%clk 0:00:41]}  Kg7 {[%clk 0:01:17]} 34. f4 {[%clk 0:00:39]}  Kf6 {[%clk 0:01:06]} 35. Kf2 {[%clk 0:00:40]}  e5 {[%clk 0:01:05]} 36. b5 {[%clk 0:00:32]}  a5 {[%clk 0:01:02]} 37. Nd5+ {[%clk 0:00:30]}  Nxd5 {[%clk 0:01:01]} 38. exd5 {[%clk 0:00:31]}  exf4 {[%clk 0:00:58]} 39. gxf4 {[%clk 0:00:31]}  Bc5+ {[%clk 0:00:58]} 40. Kf3 {[%clk 0:00:31]}  a4 {[%clk 0:00:55]} 41. Nc3 {[%clk 0:00:25]}  a3 {[%clk 0:00:55]} 42. Ke4 {[%clk 0:00:17]}  Ke7 {[%clk 0:00:47]} 43. f5 {[%clk 0:00:14]}  g5 {[%clk 0:00:47]} 44. h3 {[%clk 0:00:13]}  Kd6 {[%clk 0:00:46]} 45. b6 {[%clk 0:00:12]}  g4 {[%clk 0:00:37]} 46. hxg4 {[%clk 0:00:12]}  hxg4 {[%clk 0:00:37]} 47. Kf4 {[%clk 0:00:12]}  Bxb6 {[%clk 0:00:30]} 48. Nb5+ {[%clk 0:00:12]}  Kxd5 {[%clk 0:00:30]} 49. Nxa3 {[%clk 0:00:13]}  Bc5 {[%clk 0:00:26]} 50. Nb5 {[%clk 0:00:11]}  Bd4 {[%clk 0:00:22]} 51. Kxg4 {[%clk 0:00:10]}  c3 {[%clk 0:00:22]} 52. Na3 {[%clk 0:00:10]}  Ke4 {[%clk 0:00:22]} 53. Nc2 {[%clk 0:00:09]}  Kd3 {[%clk 0:00:21]} 54. Nb4+ {[%clk 0:00:09]}  Kd2 {[%clk 0:00:21]} 55. Kf4 {[%clk 0:00:04]}  c2 {[%clk 0:00:21]} 56. Na2 {[%clk 0:00:04]}  c1=Q {[%clk 0:00:21]} 57. Nxc1 {[%clk 0:00:04]}  Kxc1 {[%clk 0:00:22]} 58. Ke4 {[%clk 0:00:05]}  Bb2 {[%clk 0:00:22]} 59. Kd5 {[%clk 0:00:03]}  f6 {[%clk 0:00:22]} 60. Ke4 {[%clk 0:00:04]}  Be5 {[%clk 0:00:23]} 0-1


[Site "https://www.chess.com"]

[Event "Titled Tuesday Blitz January 10 Early 2023"]
[White "Leiva, Gianmarco"]
[Black "Shubenkova, Veronika"]
[WhiteFideId "3804399"]
[BlackFideId "44124040"]
[WhiteElo "2315"]
[BlackElo "2027"]
[Result "0-1"]
[Round "04"]
[TimeControl "180+1"]
[Date "2023.01.10"]
[WhiteClock "0:00:18"]
[BlackClock "0:00:08"]

1. e4 {[%clk 0:02:53]}  c6 {[%clk 0:02:59]} 2. d4 {[%clk 0:02:49]}  d5 {[%clk 0:02:59]} 3. exd5 {[%clk 0:02:46]}  cxd5 {[%clk 0:02:58]} 4. c3 {[%clk 0:02:45]}  Nc6 {[%clk 0:02:58]} 5. Bd3 {[%clk 0:02:43]}  Nf6 {[%clk 0:02:58]} 6. Nf3 {[%clk 0:02:39]}  Bg4 {[%clk 0:02:57]} 7. O-O {[%clk 0:02:38]}  e6 {[%clk 0:02:57]} 8. Nbd2 {[%clk 0:02:36]}  Bd6 {[%clk 0:02:57]} 9. h3 {[%clk 0:02:33]}  Bh5 {[%clk 0:02:56]} 10. Re1 {[%clk 0:02:14]}  Qc7 {[%clk 0:02:53]} 11. Qe2 {[%clk 0:02:07]}  O-O {[%clk 0:02:52]} 12. Nf1 {[%clk 0:02:04]}  a6 {[%clk 0:02:50]} 13. Bg5 {[%clk 0:02:04]}  Be7 {[%clk 0:02:42]} 14. Ng3 {[%clk 0:02:00]}  Bg6 {[%clk 0:02:39]} 15. Bxg6 {[%clk 0:02:00]}  hxg6 {[%clk 0:02:38]} 16. h4 {[%clk 0:01:36]}  Nh7 {[%clk 0:02:36]} 17. Qe3 {[%clk 0:01:25]}  Rae8 {[%clk 0:02:24]} 18. Ne2 {[%clk 0:01:18]}  Bd6 {[%clk 0:02:23]} 19. Bf4 {[%clk 0:01:10]}  Na5 {[%clk 0:02:21]} 20. Bxd6 {[%clk 0:01:05]}  Qxd6 {[%clk 0:02:21]} 21. Ne5 {[%clk 0:01:05]}  Nc6 {[%clk 0:02:17]} 22. Nd3 {[%clk 0:01:02]}  Nf6 {[%clk 0:02:14]} 23. Nef4 {[%clk 0:00:58]}  Ne4 {[%clk 0:02:09]} 24. f3 {[%clk 0:00:56]}  Ng3 {[%clk 0:02:09]} 25. Qf2 {[%clk 0:00:57]}  Nf5 {[%clk 0:02:05]} 26. g4 {[%clk 0:00:57]}  Nh6 {[%clk 0:02:02]} 27. Re2 {[%clk 0:00:51]}  e5 {[%clk 0:02:02]} 28. Rae1 {[%clk 0:00:49]}  e4 {[%clk 0:01:27]} 29. fxe4 {[%clk 0:00:32]}  dxe4 {[%clk 0:01:27]} 30. Rxe4 {[%clk 0:00:33]}  Nxg4 {[%clk 0:01:27]} 31. Qg2 {[%clk 0:00:30]}  Rxe4 {[%clk 0:01:25]} 32. Rxe4 {[%clk 0:00:31]}  Nf6 {[%clk 0:01:25]} 33. Re1 {[%clk 0:00:31]}  Ne7 {[%clk 0:01:17]} 34. Ne5 {[%clk 0:00:31]}  Nf5 {[%clk 0:01:14]} 35. h5 {[%clk 0:00:26]}  gxh5 {[%clk 0:01:08]} 36. Qxb7 {[%clk 0:00:25]}  Nxd4 {[%clk 0:01:02]} 37. Qb4 {[%clk 0:00:12]}  Qxb4 {[%clk 0:00:57]} 38. cxb4 {[%clk 0:00:13]}  Re8 {[%clk 0:00:54]} 39. Nfd3 {[%clk 0:00:13]}  Nd5 {[%clk 0:00:46]} 40. Kf2 {[%clk 0:00:13]}  f6 {[%clk 0:00:46]} 41. Nf3 {[%clk 0:00:11]}  Rxe1 {[%clk 0:00:45]} 42. Nfxe1 {[%clk 0:00:12]}  Nc6 {[%clk 0:00:44]} 43. a3 {[%clk 0:00:12]}  g6 {[%clk 0:00:44]} 44. Nc5 {[%clk 0:00:10]}  Nb8 {[%clk 0:00:42]} 45. Nc2 {[%clk 0:00:08]}  Kf7 {[%clk 0:00:42]} 46. Nd4 {[%clk 0:00:08]}  Nb6 {[%clk 0:00:41]} 47. b3 {[%clk 0:00:07]}  Nd5 {[%clk 0:00:40]} 48. Nd3 {[%clk 0:00:07]}  Nd7 {[%clk 0:00:38]} 49. a4 {[%clk 0:00:06]}  Ne5 {[%clk 0:00:36]} 50. Nxe5+ {[%clk 0:00:06]}  fxe5 {[%clk 0:00:37]} 51. b5 {[%clk 0:00:07]}  exd4 {[%clk 0:00:36]} 52. bxa6 {[%clk 0:00:07]}  Ke7 {[%clk 0:00:34]} 53. b4 {[%clk 0:00:07]}  Kd7 {[%clk 0:00:33]} 54. a7 {[%clk 0:00:07]}  Nc7 {[%clk 0:00:32]} 55. b5 {[%clk 0:00:07]}  Na8 {[%clk 0:00:32]} 56. a5 {[%clk 0:00:06]}  Kc7 {[%clk 0:00:32]} 57. Kf3 {[%clk 0:00:03]}  g5 {[%clk 0:00:30]} 58. Ke4 {[%clk 0:00:04]}  Kb7 {[%clk 0:00:30]} 59. b6 {[%clk 0:00:03]}  h4 {[%clk 0:00:20]} 60. Kxd4 {[%clk 0:00:03]}  h3 {[%clk 0:00:19]} 61. Kc5 {[%clk 0:00:03]}  h2 {[%clk 0:00:18]} 62. Kb5 {[%clk 0:00:04]}  h1=Q {[%clk 0:00:16]} 63. a6+ {[%clk 0:00:05]}  Kc8 {[%clk 0:00:07]} 64. b7+ {[%clk 0:00:05]}  Qxb7+ {[%clk 0:00:05]} 65. axb7+ {[%clk 0:00:06]}  Kxb7 {[%clk 0:00:04]} 66. Kc5 {[%clk 0:00:07]}  Nc7 {[%clk 0:00:02]} 67. Kd4 {[%clk 0:00:05]}  Kxa7 {[%clk 0:00:02]} 68. Ke5 {[%clk 0:00:06]}  Kb6 {[%clk 0:00:02]} 69. Kf5 {[%clk 0:00:07]}  Ne6 {[%clk 0:00:02]} 70. Kg4 {[%clk 0:00:08]}  Kc5 {[%clk 0:00:03]} 71. Kf5 {[%clk 0:00:09]}  Kd5 {[%clk 0:00:03]} 72. Kg4 {[%clk 0:00:09]}  Ke5 {[%clk 0:00:03]} 73. Kh5 {[%clk 0:00:10]}  Kf4 {[%clk 0:00:03]} 74. Kg6 {[%clk 0:00:10]}  g4 {[%clk 0:00:03]} 75. Kf6 {[%clk 0:00:11]}  g3 {[%clk 0:00:04]} 76. Kxe6 {[%clk 0:00:12]}  g2 {[%clk 0:00:05]} 77. Kd5 {[%clk 0:00:13]}  g1=Q {[%clk 0:00:06]} 78. Ke6 {[%clk 0:00:13]}  Qe3+ {[%clk 0:00:06]} 79. Kf7 {[%clk 0:00:14]}  Qe5 {[%clk 0:00:06]} 80. Kg8 {[%clk 0:00:15]}  Qf6 {[%clk 0:00:06]} 81. Kh7 {[%clk 0:00:16]}  Qg5 {[%clk 0:00:07]} 82. Kh8 {[%clk 0:00:16]}  Kf5 {[%clk 0:00:07]} 83. Kh7 {[%clk 0:00:17]}  Kf6 {[%clk 0:00:08]} 84. Kh8 {[%clk 0:00:18]}  Qg7# {[%clk 0:00:08]} 0-1


[Site "https://www.chess.com"]

[Event "Titled Tuesday Blitz January 10 Early 2023"]
[White "Spata, German"]
[Black "Langner, Ladislav"]
[WhiteFideId "113026"]
[BlackFideId "300403"]
[WhiteElo "2238"]
[BlackElo "2346"]
[Result "1-0"]
[Round "04"]
[TimeControl "180+1"]
[Date "2023.01.10"]
[WhiteClock "0:00:11"]
[BlackClock "0:00:14"]

1. Nf3 {[%clk 0:03:00]}  Nf6 {[%clk 0:02:59]} 2. b3 {[%clk 0:03:01]}  g6 {[%clk 0:03:00]} 3. Bb2 {[%clk 0:03:02]}  Bg7 {[%clk 0:03:00]} 4. g3 {[%clk 0:03:02]}  d5 {[%clk 0:03:00]} 5. c4 {[%clk 0:03:02]}  dxc4 {[%clk 0:02:56]} 6. bxc4 {[%clk 0:03:02]}  c5 {[%clk 0:02:57]} 7. Bg2 {[%clk 0:03:02]}  Nc6 {[%clk 0:02:57]} 8. O-O {[%clk 0:03:02]}  O-O {[%clk 0:02:55]} 9. d3 {[%clk 0:03:03]}  Qc7 {[%clk 0:02:48]} 10. Nc3 {[%clk 0:03:02]}  b6 {[%clk 0:02:47]} 11. Nd5 {[%clk 0:02:38]}  Qd6 {[%clk 0:02:33]} 12. Nxf6+ {[%clk 0:02:28]}  Bxf6 {[%clk 0:02:33]} 13. Bxf6 {[%clk 0:02:26]}  Qxf6 {[%clk 0:02:33]} 14. Ne5 {[%clk 0:02:22]}  Qxe5 {[%clk 0:02:32]} 15. Bxc6 {[%clk 0:02:22]}  Rb8 {[%clk 0:02:32]} 16. a4 {[%clk 0:02:20]}  Bb7 {[%clk 0:02:29]} 17. Bxb7 {[%clk 0:02:18]}  Rxb7 {[%clk 0:02:30]} 18. Rb1 {[%clk 0:02:15]}  Rd7 {[%clk 0:02:27]} 19. a5 {[%clk 0:02:12]}  Rd6 {[%clk 0:02:27]} 20. Qc2 {[%clk 0:02:08]}  Rfd8 {[%clk 0:02:26]} 21. Rb5 {[%clk 0:02:06]}  Re6 {[%clk 0:02:19]} 22. Rb2 {[%clk 0:02:00]}  h5 {[%clk 0:02:13]} 23. Rfb1 {[%clk 0:01:57]}  Rdd6 {[%clk 0:02:11]} 24. axb6 {[%clk 0:01:57]}  axb6 {[%clk 0:02:11]} 25. h4 {[%clk 0:01:52]}  g5 {[%clk 0:02:10]} 26. hxg5 {[%clk 0:01:53]}  Qxg5 {[%clk 0:02:08]} 27. Qc1 {[%clk 0:01:49]}  Qg4 {[%clk 0:02:06]} 28. Qf4 {[%clk 0:01:45]}  Qxf4 {[%clk 0:02:02]} 29. gxf4 {[%clk 0:01:45]}  Rf6 {[%clk 0:02:02]} 30. f3 {[%clk 0:01:28]}  Rde6 {[%clk 0:01:45]} 31. Kf2 {[%clk 0:01:26]}  Kf8 {[%clk 0:01:38]} 32. f5 {[%clk 0:01:25]}  Rxf5 {[%clk 0:01:29]} 33. Rxb6 {[%clk 0:01:25]}  Rxb6 {[%clk 0:01:27]} 34. Rxb6 {[%clk 0:01:26]}  Kg7 {[%clk 0:01:26]} 35. Rc6 {[%clk 0:01:22]}  h4 {[%clk 0:01:25]} 36. Kg2 {[%clk 0:01:04]}  e6 {[%clk 0:01:19]} 37. Kh3 {[%clk 0:01:00]}  Rh5 {[%clk 0:01:17]} 38. Ra6 {[%clk 0:00:53]}  Kf6 {[%clk 0:01:14]} 39. Ra5 {[%clk 0:00:52]}  Ke7 {[%clk 0:01:00]} 40. d4 {[%clk 0:00:48]}  Kd6 {[%clk 0:00:58]} 41. e4 {[%clk 0:00:29]}  f6 {[%clk 0:00:52]} 42. Ra6+ {[%clk 0:00:25]}  Kd7 {[%clk 0:00:51]} 43. d5 {[%clk 0:00:25]}  exd5 {[%clk 0:00:48]} 44. cxd5 {[%clk 0:00:26]}  f5 {[%clk 0:00:41]} 45. e5 {[%clk 0:00:23]}  f4 {[%clk 0:00:41]} 46. e6+ {[%clk 0:00:17]}  Ke7 {[%clk 0:00:32]} 47. Ra7+ {[%clk 0:00:17]}  Kf6 {[%clk 0:00:27]} 48. e7 {[%clk 0:00:11]}  Kf7 {[%clk 0:00:22]} 49. d6 {[%clk 0:00:09]}  Rd5 {[%clk 0:00:22]} 50. Ra8 {[%clk 0:00:08]}  Re5 {[%clk 0:00:18]} 51. Rf8+ {[%clk 0:00:08]}  Kg7 {[%clk 0:00:18]} 52. e8=Q {[%clk 0:00:09]}  Rxe8 {[%clk 0:00:18]} 53. Rxe8 {[%clk 0:00:10]}  c4 {[%clk 0:00:18]} 54. d7 {[%clk 0:00:10]}  c3 {[%clk 0:00:18]} 55. d8=Q {[%clk 0:00:11]}  c2 {[%clk 0:00:19]} 56. Qg5+ {[%clk 0:00:10]}  Kf7 {[%clk 0:00:19]} 57. Re7+ {[%clk 0:00:11]}  Kf8 {[%clk 0:00:14]} 58. Qg7# {[%clk 0:00:11]} 1-0


[Site "https://www.chess.com"]

[Event "Titled Tuesday Blitz January 10 Early 2023"]
[White "Nikologorsky, Matfei"]
[Black "Pajeken, Jakob Leon"]
[WhiteFideId "24102474"]
[BlackFideId "12942839"]
[WhiteElo "2153"]
[BlackElo "2414"]
[Result "0-1"]
[Round "04"]
[TimeControl "180+1"]
[Date "2023.01.10"]
[WhiteClock "0:00:05"]
[BlackClock "0:00:11"]

1. e4 {[%clk 0:02:30]}  e5 {[%clk 0:02:59]} 2. Nf3 {[%clk 0:02:29]}  Nc6 {[%clk 0:02:59]} 3. Bb5 {[%clk 0:02:30]}  a6 {[%clk 0:02:59]} 4. Ba4 {[%clk 0:02:30]}  Be7 {[%clk 0:02:59]} 5. O-O {[%clk 0:02:28]}  Nf6 {[%clk 0:02:59]} 6. d3 {[%clk 0:02:25]}  b5 {[%clk 0:02:58]} 7. Bb3 {[%clk 0:02:25]}  d6 {[%clk 0:02:58]} 8. c3 {[%clk 0:02:25]}  O-O {[%clk 0:02:58]} 9. Nbd2 {[%clk 0:02:24]}  Na5 {[%clk 0:02:56]} 10. Bc2 {[%clk 0:02:24]}  c5 {[%clk 0:02:57]} 11. Re1 {[%clk 0:02:22]}  Nc6 {[%clk 0:02:58]} 12. Nf1 {[%clk 0:02:21]}  Re8 {[%clk 0:02:56]} 13. a4 {[%clk 0:02:16]}  Be6 {[%clk 0:02:55]} 14. Ng3 {[%clk 0:02:08]}  g6 {[%clk 0:02:50]} 15. d4 {[%clk 0:02:02]}  cxd4 {[%clk 0:02:45]} 16. cxd4 {[%clk 0:02:02]}  Bg4 {[%clk 0:02:46]} 17. Be3 {[%clk 0:01:46]}  Rc8 {[%clk 0:02:38]} 18. Bb3 {[%clk 0:01:32]}  Na5 {[%clk 0:02:18]} 19. Ba2 {[%clk 0:01:32]}  Nc4 {[%clk 0:02:14]} 20. Bxc4 {[%clk 0:01:30]}  bxc4 {[%clk 0:02:10]} 21. dxe5 {[%clk 0:01:26]}  dxe5 {[%clk 0:02:00]} 22. Qxd8 {[%clk 0:01:21]}  Bxd8 {[%clk 0:02:00]} 23. Rac1 {[%clk 0:01:13]}  h5 {[%clk 0:01:50]} 24. h3 {[%clk 0:01:08]}  Bxf3 {[%clk 0:01:40]} 25. gxf3 {[%clk 0:01:09]}  Nh7 {[%clk 0:01:35]} 26. Ne2 {[%clk 0:01:02]}  Ba5 {[%clk 0:01:28]} 27. Nc3 {[%clk 0:00:58]}  Nf8 {[%clk 0:01:28]} 28. Red1 {[%clk 0:00:55]}  f6 {[%clk 0:00:55]} 29. Nd5 {[%clk 0:00:51]}  Kf7 {[%clk 0:00:51]} 30. Bb6 {[%clk 0:00:39]}  Bxb6 {[%clk 0:00:39]} 31. Nxb6 {[%clk 0:00:40]}  Rc6 {[%clk 0:00:33]} 32. Nxc4 {[%clk 0:00:38]}  Rec8 {[%clk 0:00:33]} 33. b3 {[%clk 0:00:34]}  Ne6 {[%clk 0:00:33]} 34. Rc3 {[%clk 0:00:20]}  Nf4 {[%clk 0:00:29]} 35. Kh2 {[%clk 0:00:19]}  Ke6 {[%clk 0:00:26]} 36. Re3 {[%clk 0:00:19]}  g5 {[%clk 0:00:24]} 37. a5 {[%clk 0:00:17]}  Rh8 {[%clk 0:00:21]} 38. Rd2 {[%clk 0:00:17]}  g4 {[%clk 0:00:21]} 39. hxg4 {[%clk 0:00:14]}  hxg4+ {[%clk 0:00:20]} 40. Kg1 {[%clk 0:00:15]}  gxf3 {[%clk 0:00:19]} 41. Rxf3 {[%clk 0:00:15]}  Rcc8 {[%clk 0:00:19]} 42. Rg3 {[%clk 0:00:14]}  Rh7 {[%clk 0:00:17]} 43. Rd6+ {[%clk 0:00:15]}  Ke7 {[%clk 0:00:17]} 44. Rxa6 {[%clk 0:00:15]}  Ne2+ {[%clk 0:00:14]} 45. Kg2 {[%clk 0:00:15]}  Nf4+ {[%clk 0:00:14]} 46. Kf3 {[%clk 0:00:14]}  Rh1 {[%clk 0:00:12]} 47. Rg7+ {[%clk 0:00:12]}  Kf8 {[%clk 0:00:12]} 48. Raa7 {[%clk 0:00:10]}  Rd1 {[%clk 0:00:12]} 49. Kg4 {[%clk 0:00:10]}  Rg1+ {[%clk 0:00:12]} 50. Kf5 {[%clk 0:00:08]}  Rxg7 {[%clk 0:00:13]} 51. Ra6 {[%clk 0:00:08]}  Rf7 {[%clk 0:00:09]} 52. Rxf6 {[%clk 0:00:06]}  Rxf6+ {[%clk 0:00:09]} 53. Kxf6 {[%clk 0:00:07]}  Nd3 {[%clk 0:00:08]} 54. f3 {[%clk 0:00:06]}  Rc6+ {[%clk 0:00:09]} 55. Kf5 {[%clk 0:00:06]}  Ke7 {[%clk 0:00:08]} 56. Nb6 {[%clk 0:00:07]}  Nc5 {[%clk 0:00:07]} 57. Nd5+ {[%clk 0:00:07]}  Kd6 {[%clk 0:00:07]} 58. b4 {[%clk 0:00:08]}  Nd3 {[%clk 0:00:07]} 59. b5 {[%clk 0:00:08]}  Rc1 {[%clk 0:00:08]} 60. b6 {[%clk 0:00:08]}  Rb1 {[%clk 0:00:07]} 61. a6 {[%clk 0:00:08]}  Nc5 {[%clk 0:00:07]} 62. a7 {[%clk 0:00:08]}  Ra1 {[%clk 0:00:08]} 63. f4 {[%clk 0:00:08]}  exf4 {[%clk 0:00:08]} 64. Kxf4 {[%clk 0:00:08]}  Kc6 {[%clk 0:00:08]} 65. Kf5 {[%clk 0:00:07]}  Nd7 {[%clk 0:00:08]} 66. Ke6 {[%clk 0:00:05]}  Nxb6 {[%clk 0:00:09]} 67. Ne7+ {[%clk 0:00:05]}  Kc7 {[%clk 0:00:08]} 68. Nf5 {[%clk 0:00:03]}  Rxa7 {[%clk 0:00:08]} 69. e5 {[%clk 0:00:03]}  Ra6 {[%clk 0:00:08]} 70. Kf7 {[%clk 0:00:04]}  Nc4 {[%clk 0:00:09]} 71. e6 {[%clk 0:00:04]}  Nd6+ {[%clk 0:00:09]} 72. Kf6 {[%clk 0:00:02]}  Nxf5 {[%clk 0:00:09]} 73. Kxf5 {[%clk 0:00:03]}  Kd6 {[%clk 0:00:09]} 74. Kf6 {[%clk 0:00:04]}  Ra7 {[%clk 0:00:09]} 75. Kf5 {[%clk 0:00:03]}  Re7 {[%clk 0:00:10]} 76. Kf6 {[%clk 0:00:04]}  Rxe6+ {[%clk 0:00:11]} 77. Kf5 {[%clk 0:00:05]}  Ke7 {[%clk 0:00:11]} 0-1


[Site "https://www.chess.com"]

[Event "Titled Tuesday Blitz January 10 Early 2023"]
[White "Sargissyan, Sargis"]
[Black "Pak, Yevgeniy"]
[WhiteFideId "13303210"]
[BlackFideId "14201712"]
[WhiteElo "2109"]
[BlackElo "2368"]
[Result "0-1"]
[Round "04"]
[TimeControl "180+1"]
[Date "2023.01.10"]
[WhiteClock "0:00:02"]
[BlackClock "0:00:21"]

1. e4 {[%clk 0:03:00]}  c5 {[%clk 0:02:58]} 2. Nf3 {[%clk 0:03:00]}  Nc6 {[%clk 0:02:58]} 3. d4 {[%clk 0:02:57]}  cxd4 {[%clk 0:02:58]} 4. Nxd4 {[%clk 0:02:58]}  Nf6 {[%clk 0:02:59]} 5. Nc3 {[%clk 0:02:58]}  e5 {[%clk 0:02:59]} 6. Ndb5 {[%clk 0:02:57]}  d6 {[%clk 0:03:00]} 7. Bg5 {[%clk 0:02:58]}  a6 {[%clk 0:03:00]} 8. Na3 {[%clk 0:02:58]}  b5 {[%clk 0:03:00]} 9. Nd5 {[%clk 0:02:59]}  Be7 {[%clk 0:03:00]} 10. Bxf6 {[%clk 0:02:59]}  Bxf6 {[%clk 0:03:01]} 11. c3 {[%clk 0:02:44]}  Rb8 {[%clk 0:03:00]} 12. Nc2 {[%clk 0:02:44]}  Bg5 {[%clk 0:03:00]} 13. g3 {[%clk 0:02:40]}  O-O {[%clk 0:02:55]} 14. h4 {[%clk 0:02:39]}  Bh6 {[%clk 0:02:55]} 15. Bg2 {[%clk 0:02:28]}  a5 {[%clk 0:02:52]} 16. O-O {[%clk 0:02:24]}  Be6 {[%clk 0:02:51]} 17. f4 {[%clk 0:01:59]}  f6 {[%clk 0:02:46]} 18. Nce3 {[%clk 0:01:54]}  Ne7 {[%clk 0:02:45]} 19. Kh2 {[%clk 0:01:46]}  Qd7 {[%clk 0:02:40]} 20. Nxe7+ {[%clk 0:01:28]}  Qxe7 {[%clk 0:02:39]} 21. Nd5 {[%clk 0:01:25]}  Qb7 {[%clk 0:02:23]} 22. Bh3 {[%clk 0:01:23]}  Bxd5 {[%clk 0:02:20]} 23. exd5 {[%clk 0:01:22]}  exf4 {[%clk 0:02:20]} 24. Be6+ {[%clk 0:01:21]}  Kh8 {[%clk 0:02:20]} 25. gxf4 {[%clk 0:01:21]}  f5 {[%clk 0:02:20]} 26. Qd3 {[%clk 0:01:19]}  Qe7 {[%clk 0:02:16]} 27. Kh3 {[%clk 0:01:14]}  Rf6 {[%clk 0:02:13]} 28. Rae1 {[%clk 0:01:11]}  Rbf8 {[%clk 0:02:11]} 29. Qxb5 {[%clk 0:00:45]}  Qc7 {[%clk 0:01:59]} 30. Qd7 {[%clk 0:00:40]}  Qb6 {[%clk 0:01:57]} 31. b3 {[%clk 0:00:40]}  Qc5 {[%clk 0:01:54]} 32. Rf3 {[%clk 0:00:39]}  Rg6 {[%clk 0:01:51]} 33. Qe7 {[%clk 0:00:33]}  Rgf6 {[%clk 0:01:51]} 34. h5 {[%clk 0:00:29]}  a4 {[%clk 0:01:49]} 35. b4 {[%clk 0:00:27]}  Qc4 {[%clk 0:01:49]} 36. Qxd6 {[%clk 0:00:19]}  Qxa2 {[%clk 0:01:45]} 37. Qe5 {[%clk 0:00:18]}  a3 {[%clk 0:01:44]} 38. d6 {[%clk 0:00:18]}  Qd2 {[%clk 0:01:40]} 39. Rff1 {[%clk 0:00:16]}  a2 {[%clk 0:01:34]} 40. d7 {[%clk 0:00:16]}  Qd3+ {[%clk 0:01:21]} 41. Kh2 {[%clk 0:00:15]}  Qa6 {[%clk 0:00:57]} 42. Rd1 {[%clk 0:00:15]}  a1=Q {[%clk 0:00:51]} 43. Rxa1 {[%clk 0:00:14]}  Qxe6 {[%clk 0:00:52]} 44. Qxe6 {[%clk 0:00:14]}  Rxe6 {[%clk 0:00:52]} 45. Rfd1 {[%clk 0:00:06]}  Bxf4+ {[%clk 0:00:51]} 46. Kh3 {[%clk 0:00:07]}  Rd8 {[%clk 0:00:51]} 47. Ra8 {[%clk 0:00:06]}  Re3+ {[%clk 0:00:46]} 48. Kg2 {[%clk 0:00:05]}  Bg5 {[%clk 0:00:44]} 49. Rxd8+ {[%clk 0:00:05]}  Bxd8 {[%clk 0:00:44]} 50. c4 {[%clk 0:00:03]}  Kg8 {[%clk 0:00:41]} 51. c5 {[%clk 0:00:02]}  Kf7 {[%clk 0:00:41]} 52. b5 {[%clk 0:00:02]}  Rc3 {[%clk 0:00:38]} 53. c6 {[%clk 0:00:03]}  Rb3 {[%clk 0:00:36]} 54. Re1 {[%clk 0:00:03]}  Rb2+ {[%clk 0:00:31]} 55. Kf3 {[%clk 0:00:03]}  Rb3+ {[%clk 0:00:30]} 56. Kf4 {[%clk 0:00:03]}  Rxb5 {[%clk 0:00:29]} 57. Re8 {[%clk 0:00:02]}  Bc7+ {[%clk 0:00:30]} 58. Ke3 {[%clk 0:00:01]}  Rd5 {[%clk 0:00:25]} 59. Rc8 {[%clk 0:00:01]}  Bb6+ {[%clk 0:00:24]} 60. Kf3 {[%clk 0:00:01]}  g5 {[%clk 0:00:23]} 61. hxg6+ {[%clk 0:00:02]}  hxg6 {[%clk 0:00:23]} 62. Rb8 {[%clk 0:00:02]}  Ba5 {[%clk 0:00:23]} 63. Ra8 {[%clk 0:00:02]}  Ke7 {[%clk 0:00:22]} 64. Rxa5 {[%clk 0:00:02]}  Rxa5 {[%clk 0:00:21]} 0-1


[Site "https://www.chess.com"]